bitfinex/quotes_SOLUSD_20230112
["timestamp","ask_amount","ask_price","bid_price","bid_amount"]
[1673551435066,20.0,16.639,16.625,45.12]
[1673551435394,0.96,16.638,16.625,45.12]
[1673551435601,0.96,16.638,16.626,17.0]
[1673551436979,118.4687,16.641,16.626,17.0]
[1673551437163,118.4687,16.641,16.627,46.07]
[1673551437493,118.4687,16.641,16.629,20.0]
[1673551437689,118.4687,16.641,16.63,17.0]
[1673551438120,65.06,16.646,16.63,17.0]
[1673551438333,153.05965104,16.647,16.631,45.1]
[1673551438334,159.3624,16.647,16.631,45.1]
[1673551438537,114.3024,16.647,16.633,20.0]
[1673551439051,114.3024,16.647,16.634,17.0]
[1673551439260,114.3024,16.647,16.632,20.0]
[1673551439576,63.80725104,16.649,16.633,17.0]
[1673551439793,45.04,16.653,16.634,21.92]
[1673551440009,153.4354,16.654,16.635,45.09]
[1673551440224,153.4354,16.654,16.636,20.96]
[1673551440437,153.4354,16.654,16.638,20.0]
[1673551440752,108.3954,16.654,16.639,17.0]
[1673551440967,108.3954,16.654,16.64,69.72]
[1673551441182,184.9815,16.659,16.64,69.72]
[1673551441373,273.3769,16.659,16.641,17.0]
[1673551441574,20.0,16.658,16.642,65.07]
[1673551442020,20.0,16.658,16.643,17.0]
[1673551442540,65.03,16.657,16.642,17.0]
[1673551442750,20.0,16.657,16.642,17.0]
[1673551443369,1.92,16.656,16.643,17.0]
[1673551443591,20.0,16.657,16.643,17.0]
[1673551443784,20.0,16.658,16.643,17.0]
[1673551443995,45.03,16.657,16.643,17.0]
[1673551444222,20.0,16.658,16.641,45.07]
[1673551444223,65.03,16.658,16.641,45.07]
[1673551444419,65.03,16.658,16.642,20.0]
[1673551444841,45.02,16.661,16.643,83.99]
[1673551445167,157.0796,16.667,16.644,18.75725104]
[1673551445362,157.0796,16.667,16.645,66.98]
[1673551445363,20.0,16.666,16.645,66.98]
[1673551445570,45.01,16.665,16.646,20.0]
[1673551445784,45.01,16.665,16.647,46.02]
[1673551446213,45.01,16.665,16.648,17.0]
[1673551446424,45.01,16.665,16.649,20.0]
[1673551446643,45.01,16.665,16.65,24.64]
[1673551446827,157.0796,16.667,16.65,69.69]
[1673551447052,112.0796,16.667,16.65,69.69]
[1673551447254,45.0,16.669,16.651,0.96]
[1673551447459,113.4022,16.676,16.652,45.04]
[1673551447675,113.4022,16.676,16.66,24.64]
[1673551447888,113.4022,16.676,16.661,45.02]
[1673551448321,113.4022,16.676,16.662,17.0]
[1673551448841,113.4022,16.676,16.663,45.01]
[1673551449059,113.4022,16.676,16.662,17.0]
[1673551449455,20.0,16.675,16.662,17.0]
[1673551449667,113.4022,16.676,16.662,17.0]
[1673551449885,125.12912166,16.698,16.662,17.0]
[1673551449886,44.97,16.681,16.663,45.01]
[1673551450116,44.96,16.683,16.664,38.92]
[1673551450307,64.96,16.684,16.666,20.0]
[1673551450519,20.0,16.684,16.667,45.0]
[1673551450730,20.0,16.684,16.668,20.0]
[1673551450925,20.0,16.684,16.669,45.0]
[1673551451143,20.0,16.684,16.667,45.0]
[1673551451367,20.0,16.684,16.666,20.0]
[1673551451577,20.0,16.684,16.667,62.0]
[1673551452410,44.96,16.685,16.668,20.0]
[1673551452622,108.8626,16.686,16.669,62.0]
[1673551452825,44.95,16.687,16.67,26.43]
[1673551453046,116.3368,16.689,16.671,61.99]
[1673551453249,20.0,16.688,16.671,61.99]
[1673551453466,20.0,16.687,16.671,61.99]
[1673551454204,20.0,16.687,16.671,44.99]
[1673551454420,44.95,16.686,16.666,82.52450208]
[1673551454629,119.8566,16.686,16.666,63.76725104]
[1673551455137,20.0,16.685,16.666,63.76725104]
[1673551455348,0.96,16.684,16.666,45.01]
[1673551455771,44.96,16.683,16.664,45.01]
[1673551455973,24.64,16.68,16.661,45.02]
[1673551456185,65.93,16.679,16.661,45.02]
[1673551456395,20.96,16.678,16.661,45.02]
[1673551456604,20.0,16.676,16.66,69.52]
[1673551456815,1.92,16.675,16.66,45.02]
[1673551457038,1.92,16.675,16.656,157.1943]
[1673551457261,44.99,16.674,16.657,20.0]
[1673551457575,44.99,16.674,16.658,45.03]
[1673551457767,1.92,16.675,16.658,45.03]
[1673551457768,46.9,16.675,16.658,45.03]
[1673551457971,1.92,16.675,16.659,20.0]
[1673551458615,1.92,16.675,16.66,17.0]
[1673551458831,1.92,16.675,16.66,86.66]
[1673551459245,1.92,16.675,16.661,20.0]
[1673551459657,44.98,16.676,16.661,20.0]
[1673551459870,139.8566,16.686,16.662,83.94]
[1673551459871,44.96,16.683,16.662,83.94]
[1673551460078,20.0,16.685,16.662,83.94]
[1673551460292,138.5522,16.685,16.664,20.0]
[1673551460490,138.5522,16.685,16.665,83.93]
[1673551460698,138.5522,16.685,16.665,102.68725104]
[1673551461255,119.8566,16.686,16.67,24.51]
[1673551461454,119.8566,16.686,16.671,61.99]
[1673551461862,20.0,16.685,16.671,61.99]
[1673551462386,20.0,16.685,16.662,20.0]
[1673551462592,20.0,16.685,16.66,140.7106]
[1673551462593,361.1845,16.684,16.66,140.7106]
[1673551462809,18.92,16.683,16.66,140.7106]
[1673551463023,182.3,16.681,16.644,20.0]
[1673551463353,20.0,16.678,16.656,161.1706]
[1673551463542,196.6319,16.677,16.656,161.1706]
[1673551463750,20.96,16.676,16.656,161.1706]
[1673551463974,44.98,16.675,16.656,161.1706]
[1673551464187,20.96,16.674,16.656,116.1406]
[1673551464397,44.99,16.673,16.656,116.1406]
[1673551464616,20.0,16.671,16.652,45.04]
[1673551464802,0.96,16.67,16.652,45.04]
[1673551465244,44.99,16.673,16.654,20.0]
[1673551465453,44.99,16.673,16.655,45.04]
[1673551465454,0.96,16.672,16.655,45.04]
[1673551465774,44.99,16.673,16.656,20.0]
[1673551465960,113.9245,16.676,16.657,62.03]
[1673551466180,113.9245,16.676,16.658,21.92]
[1673551466504,133.6919,16.677,16.659,62.03]
[1673551466693,133.6919,16.677,16.66,1.92]
[1673551466910,44.96,16.683,16.662,20.0]
[1673551467113,44.96,16.683,16.663,21.92]
[1673551467334,44.95,16.687,16.664,82.01]
[1673551467552,157.4996,16.687,16.665,20.96]
[1673551467757,157.4996,16.687,16.666,45.97]
[1673551467966,157.4996,16.687,16.668,20.0]
[1673551468186,112.5496,16.687,16.669,45.0]
[1673551468507,20.0,16.685,16.67,17.0]
[1673551468704,20.0,16.685,16.671,44.99]
[1673551469042,20.0,16.685,16.672,17.0]
[1673551469235,20.0,16.685,16.668,45.0]
[1673551469558,20.0,16.685,16.669,17.0]
[1673551469876,119.8566,16.686,16.67,46.92]
[1673551470185,119.8566,16.686,16.671,20.0]
[1673551470389,119.8566,16.686,16.672,61.99]
[1673551470794,119.8566,16.686,16.672,17.0]
[1673551471233,20.0,16.685,16.672,17.0]
[1673551471535,119.8566,16.686,16.672,17.0]
[1673551471974,119.8566,16.686,16.673,44.99]
[1673551472187,0.96,16.685,16.673,44.99]
[1673551472386,0.96,16.685,16.674,17.0]
[1673551473749,0.96,16.685,16.672,20.0]
[1673551474174,119.8566,16.686,16.672,20.0]
[1673551474175,44.94,16.689,16.672,20.0]
[1673551474375,38.75725104,16.693,16.673,104.42450208]
[1673551474376,20.0,16.693,16.673,104.42450208]
[1673551474588,20.0,16.693,16.674,20.0]
[1673551474911,20.0,16.693,16.676,20.0]
[1673551475130,20.0,16.693,16.677,46.9]
[1673551475436,137.0032,16.695,16.678,20.0]
[1673551475650,137.0032,16.695,16.679,45.93]
[1673551475844,137.0032,16.695,16.68,17.0]
[1673551476284,181.9332,16.695,16.68,17.0]
[1673551477106,0.96,16.693,16.679,18.75725104]
[1673551477441,0.96,16.692,16.676,44.98]
[1673551477633,0.96,16.692,16.674,44.99]
[1673551477962,0.96,16.692,16.676,20.0]
[1673551478278,0.96,16.691,16.676,20.0]
[1673551478477,45.9,16.691,16.676,20.0]
[1673551478682,0.96,16.69,16.676,20.0]
[1673551478897,0.96,16.689,16.676,20.0]
[1673551479111,0.96,16.69,16.677,20.0]
[1673551479319,0.96,16.69,16.678,17.0]
[1673551479636,0.96,16.691,16.678,17.0]
[1673551479850,0.96,16.69,16.678,17.0]
[1673551480174,0.96,16.69,16.676,64.98]
[1673551480175,0.10662857,16.678,16.677,17.0]
[1673551480383,64.93,16.694,16.677,17.0]
[1673551480599,44.92,16.697,16.678,45.93]
[1673551480790,64.92,16.698,16.678,64.68725104]
[1673551481003,64.92,16.698,16.679,38.75725104]
[1673551481219,64.92,16.698,16.68,44.97]
[1673551481628,20.0,16.694,16.68,44.97]
[1673551481845,1.92,16.693,16.681,17.0]
[1673551482679,117.0032,16.695,16.681,17.0]
[1673551482907,117.0032,16.695,16.679,44.97]
[1673551483095,117.0032,16.695,16.68,20.0]
[1673551483304,20.0,16.698,16.681,62.93]
[1673551483519,20.0,16.697,16.682,0.96]
[1673551483740,20.0,16.697,16.682,18.75725104]
[1673551483960,20.0,16.696,16.683,17.0]
[1673551484781,1.92,16.695,16.683,17.0]
[1673551485002,64.92,16.698,16.684,20.0]
[1673551485003,44.92,16.698,16.684,20.0]
[1673551485211,109.8011,16.704,16.685,44.96]
[1673551485212,64.91,16.702,16.685,44.96]
[1673551485420,64.91,16.702,16.686,37.0]
[1673551485843,64.91,16.702,16.685,18.75725104]
[1673551486054,22.83,16.7,16.678,44.97]
[1673551486273,64.92,16.699,16.678,44.97]
[1673551486467,44.92,16.699,16.679,18.75725104]
[1673551486683,44.91,16.701,16.68,44.97]
[1673551486900,0.96,16.7,16.681,20.0]
[1673551487213,44.91,16.701,16.682,44.96]
[1673551487406,44.91,16.701,16.683,20.0]
[1673551487617,44.91,16.701,16.684,0.96]
[1673551487960,64.91,16.702,16.683,20.0]
[1673551488263,64.91,16.702,16.684,44.96]
[1673551488477,64.91,16.702,16.685,20.0]
[1673551488671,64.91,16.702,16.684,44.96]
[1673551488884,64.91,16.702,16.685,20.0]
[1673551489104,64.91,16.702,16.686,17.0]
[1673551489934,64.91,16.702,16.686,61.95]
[1673551490361,64.91,16.702,16.686,17.0]
[1673551490362,20.0,16.702,16.686,17.0]
[1673551490576,64.91,16.703,16.686,17.0]
[1673551490792,20.0,16.703,16.686,17.0]
[1673551491313,46.83,16.702,16.686,17.0]
[1673551491539,20.0,16.701,16.686,17.0]
[1673551491760,0.96,16.7,16.686,17.0]
[1673551492072,0.96,16.7,16.68,22.68]
[1673551492073,45.88,16.7,16.68,22.68]
[1673551492384,20.0,16.699,16.68,22.68]
[1673551492600,45.88,16.698,16.68,67.65]
[1673551492786,45.88,16.698,16.681,20.0]
[1673551492994,0.96,16.698,16.682,44.96]
[1673551493226,0.89317781,16.698,16.682,44.96]
[1673551493434,0.89317781,16.698,16.683,17.0]
[1673551493647,0.89317781,16.698,16.682,44.96]
[1673551493848,44.92,16.697,16.68,44.97]
[1673551494061,20.0,16.696,16.679,113.2779]
[1673551494281,118.0936,16.695,16.679,113.2779]
[1673551494589,118.0936,16.695,16.68,44.97]
[1673551495004,118.0936,16.695,16.679,113.2779]
[1673551495427,118.0936,16.695,16.679,132.03515104]
[1673551495647,118.0936,16.695,16.68,44.97]
[1673551495838,20.96,16.694,16.68,44.97]
[1673551496050,118.0936,16.695,16.68,44.97]
[1673551496369,118.0936,16.695,16.681,17.0]
[1673551496588,118.0936,16.695,16.681,37.0]
[1673551496796,118.0936,16.695,16.681,17.0]
[1673551497640,20.0,16.694,16.681,17.0]
[1673551498382,118.0936,16.695,16.681,17.0]
[1673551498570,44.92,16.698,16.682,18.75725104]
[1673551498793,64.91,16.701,16.684,20.0]
[1673551499117,44.91,16.701,16.685,64.96]
[1673551499316,64.91,16.703,16.685,64.96]
[1673551499519,44.9,16.707,16.687,20.0]
[1673551499726,44.9,16.707,16.69,22.88]
[1673551499932,20.0,16.706,16.691,44.94]
[1673551500162,20.0,16.706,16.69,22.88]
[1673551500163,20.0,16.706,16.69,67.82]
[1673551500383,20.0,16.706,16.689,64.94]
[1673551500585,20.0,16.706,16.689,44.94]
[1673551500799,20.0,16.706,16.689,63.69725104]
[1673551501205,44.9,16.705,16.69,17.0]
[1673551501413,44.9,16.705,16.691,17.0]
[1673551501628,44.9,16.705,16.688,119.2091]
[1673551501850,135.0477,16.704,16.688,119.2091]
[1673551502045,44.91,16.703,16.688,119.2091]
[1673551502255,0.96,16.702,16.688,119.2091]
[1673551502567,0.96,16.702,16.685,44.96]
[1673551502777,44.91,16.701,16.682,118.0844]
[1673551503096,0.96,16.7,16.683,64.96]
[1673551503323,0.96,16.7,16.683,83.71725104]
[1673551503533,135.0477,16.704,16.683,83.71725104]
[1673551503534,64.91,16.703,16.684,18.75725104]
[1673551503726,20.0,16.703,16.686,20.0]
[1673551504059,20.0,16.703,16.685,64.96]
[1673551504257,64.91,16.703,16.685,64.96]
[1673551504465,64.91,16.703,16.686,17.0]
[1673551504978,44.91,16.703,16.686,17.0]
[1673551505197,115.0477,16.704,16.687,65.62725104]
[1673551505407,115.0477,16.704,16.688,17.0]
[1673551505620,44.89,16.708,16.689,45.9]
[1673551505832,20.0,16.707,16.689,18.75725104]
[1673551506037,44.9,16.706,16.689,18.75725104]
[1673551506466,44.9,16.706,16.69,17.0]
[1673551506679,44.9,16.706,16.69,62.57404143]
[1673551506680,20.0,16.705,16.69,62.57404143]
[1673551506882,44.9,16.704,16.691,98.15582951]
[1673551507420,20.0,16.705,16.692,47.91404143]
[1673551507624,20.0,16.705,16.69,18.75725104]
[1673551507625,44.9,16.704,16.69,18.75725104]
[1673551507818,20.0,16.703,16.69,18.75725104]
[1673551508238,0.96,16.702,16.685,20.0]
[1673551508463,0.96,16.702,16.687,18.75725104]
[1673551508671,44.91,16.701,16.687,18.75725104]
[1673551508876,22.9,16.71,16.69,22.88]
[1673551509098,375.94745928,16.713,16.691,174.7099]
[1673551509099,108.7638,16.713,16.691,174.7099]
[1673551509309,108.7638,16.713,16.692,1.92]
[1673551509632,113.47246,16.713,16.694,20.0]
[1673551509817,113.47246,16.713,16.695,44.93]
[1673551509818,20.0,16.712,16.695,44.93]
[1673551510030,20.0,16.712,16.695,63.68725104]
[1673551510380,20.0,16.712,16.696,18.75725104]
[1673551510578,24.70866,16.712,16.696,18.75725104]
[1673551511194,0.96,16.711,16.696,18.75725104]
[1673551511514,24.70866,16.712,16.696,18.75725104]
[1673551511515,20.0,16.712,16.696,18.75725104]
[1673551512344,20.0,16.712,16.697,17.0]
[1673551512553,44.86,16.719,16.7,24.3]
[1673551512891,20.0,16.721,16.702,20.0]
[1673551513094,20.0,16.721,16.703,155.8891]
[1673551513290,20.0,16.721,16.705,20.0]
[1673551513502,20.0,16.721,16.706,44.9]
[1673551513716,44.84,16.727,16.706,63.65725104]
[1673551513717,20.0,16.726,16.706,63.65725104]
[1673551513936,4.70866,16.725,16.706,63.65725104]
[1673551514155,4.70866,16.725,16.71,24.43]
[1673551514351,20.0,16.726,16.71,24.43]
[1673551514776,20.0,16.726,16.711,80.64725104]
[1673551515190,20.0,16.726,16.712,18.75725104]
[1673551516680,20.0,16.726,16.709,44.89]
[1673551516863,20.0,16.726,16.706,18.75725104]
[1673551517073,44.85,16.725,16.707,44.9]
[1673551517303,20.0,16.726,16.71,24.43]
[1673551517505,20.0,16.726,16.711,44.89]
[1673551517719,20.0,16.726,16.711,63.64725104]
[1673551518234,20.0,16.728,16.712,18.75725104]
[1673551518452,20.0,16.729,16.713,64.88]
[1673551518766,20.0,16.729,16.714,18.75725104]
[1673551518973,20.0,16.73,16.715,64.87]
[1673551519176,20.0,16.73,16.714,44.88]
[1673551519384,20.0,16.73,16.712,44.88]
[1673551519385,44.39,16.73,16.712,44.88]
[1673551519600,44.39,16.73,16.711,118.8365]
[1673551519601,20.0,16.728,16.711,118.8365]
[1673551519822,20.0,16.728,16.711,137.59375104]
[1673551520541,64.83,16.73,16.713,20.0]
[1673551520756,20.0,16.73,16.714,44.88]
[1673551520969,20.0,16.73,16.714,63.63725104]
[1673551521507,20.0,16.73,16.712,44.88]
[1673551521709,0.96,16.729,16.713,20.0]
[1673551521913,0.96,16.729,16.714,44.88]
[1673551522122,20.0,16.73,16.715,37.0]
[1673551522334,20.0,16.73,16.715,100.62725104]
[1673551522756,20.0,16.73,16.716,18.75725104]
[1673551522969,600.0,16.732,16.717,44.87]
[1673551523391,600.0,16.732,16.718,18.75725104]
[1673551523593,600.0,16.732,16.719,44.86]
[1673551523815,20.0,16.731,16.718,18.75725104]
[1673551524023,600.0,16.732,16.72,18.75725104]
[1673551524244,600.0,16.732,16.72,43.14725104]
[1673551524556,600.0,16.732,16.722,20.0]
[1673551524764,600.0,16.732,16.723,64.85]
[1673551524960,600.0,16.732,16.723,44.85]
[1673551525179,600.0,16.732,16.724,20.0]
[1673551525608,600.0,16.732,16.723,40.0]
[1673551525913,600.0,16.732,16.724,44.85]
[1673551526250,600.0,16.732,16.721,18.75725104]
[1673551526460,20.0,16.731,16.721,18.75725104]
[1673551527198,600.0,16.732,16.721,18.75725104]
[1673551527407,600.0,16.732,16.722,17.0]
[1673551527717,600.0,16.732,16.723,18.75725104]
[1673551529297,600.0,16.732,16.72,24.39]
[1673551529614,20.0,16.731,16.716,44.87]
[1673551529818,44.83,16.73,16.712,44.88]
[1673551530010,44.83,16.73,16.713,20.0]
[1673551530223,64.83,16.731,16.713,20.0]
[1673551530448,0.96,16.73,16.713,20.0]
[1673551531184,0.96,16.73,16.711,118.8365]
[1673551531185,44.84,16.729,16.711,44.89]
[1673551531400,20.96,16.728,16.71,24.44]
[1673551531600,64.84,16.727,16.707,20.0]
[1673551531807,64.84,16.727,16.708,44.89]
[1673551532016,44.84,16.727,16.71,24.36]
[1673551532231,177.8716,16.731,16.711,44.89]
[1673551532450,0.96,16.73,16.712,20.0]
[1673551532970,0.96,16.73,16.713,44.88]
[1673551533187,0.96,16.73,16.714,20.0]
[1673551533375,25.35,16.73,16.711,44.89]
[1673551533593,244.14,16.729,16.709,44.89]
[1673551533813,244.14,16.729,16.707,44.9]
[1673551533814,20.96,16.728,16.707,44.9]
[1673551534027,44.84,16.727,16.707,44.9]
[1673551534432,20.96,16.726,16.707,44.9]
[1673551534763,20.0,16.724,16.707,44.9]
[1673551535161,20.0,16.724,16.708,37.0]
[1673551535390,20.0,16.724,16.708,17.0]
[1673551535391,0.96,16.723,16.708,17.0]
[1673551536146,20.0,16.724,16.709,44.89]
[1673551536558,20.0,16.724,16.708,44.89]
[1673551537076,20.0,16.724,16.709,20.0]
[1673551537506,0.96,16.723,16.71,17.0]
[1673551537833,0.96,16.723,16.708,44.89]
[1673551538033,0.96,16.723,16.707,44.9]
[1673551538857,0.96,16.723,16.703,44.91]
[1673551539075,45.81,16.723,16.707,44.9]
[1673551539285,20.0,16.722,16.707,44.9]
[1673551539501,20.0,16.722,16.703,44.91]
[1673551539719,0.96,16.721,16.703,44.91]
[1673551539926,0.96,16.721,16.707,44.9]
[1673551541303,0.96,16.721,16.701,44.91]
[1673551542020,368.22725104,16.72,16.701,44.91]
[1673551542229,20.0,16.719,16.696,154.4943]
[1673551542454,64.87,16.718,16.696,154.4943]
[1673551542660,0.96,16.717,16.696,154.4943]
[1673551542857,44.87,16.716,16.696,154.4943]
[1673551543068,20.0,16.714,16.696,154.4943]
[1673551543285,20.0,16.712,16.696,154.4943]
[1673551543925,118.1662,16.713,16.696,154.4943]
[1673551544331,44.87,16.717,16.697,20.0]
[1673551544549,135.8297,16.721,16.7,24.35]
[1673551544758,135.8297,16.721,16.701,64.91]
[1673551544959,135.8297,16.721,16.702,0.96]
[1673551545183,135.8297,16.721,16.703,44.91]
[1673551545505,44.16,16.72,16.703,44.91]
[1673551545695,44.16,16.72,16.701,44.91]
[1673551545696,89.02,16.72,16.701,44.91]
[1673551545914,89.02,16.72,16.698,44.92]
[1673551546123,20.0,16.719,16.699,1.92]
[1673551546447,20.0,16.717,16.7,44.92]
[1673551546646,20.0,16.717,16.697,44.92]
[1673551546860,0.96,16.716,16.697,44.92]
[1673551547585,19.71725104,16.716,16.697,44.92]
[1673551547801,24.39,16.71,16.691,44.94]
[1673551548027,24.39,16.71,16.692,20.0]
[1673551548228,20.96,16.709,16.693,44.93]
[1673551548439,20.96,16.709,16.694,20.0]
[1673551548649,20.96,16.709,16.693,44.93]
[1673551548650,20.0,16.708,16.693,44.93]
[1673551548984,45.86,16.707,16.689,44.94]
[1673551549605,0.96,16.707,16.689,44.94]
[1673551550342,20.0,16.708,16.69,20.0]
[1673551550554,20.0,16.708,16.691,44.94]
[1673551550743,20.0,16.708,16.692,20.0]
[1673551551077,20.0,16.708,16.691,44.94]
[1673551551293,20.0,16.707,16.691,44.94]
[1673551551477,40.0,16.708,16.691,44.94]
[1673551551692,0.96,16.707,16.691,44.94]
[1673551552318,20.96,16.707,16.69,44.94]
[1673551552645,20.96,16.707,16.688,118.4371]
[1673551552855,65.86,16.707,16.689,44.94]
[1673551554129,65.86,16.707,16.678,51.5421155]
[1673551554130,24.22,16.7,16.682,44.96]
[1673551554340,24.22,16.7,16.674,31.5421155]
[1673551554341,64.92,16.699,16.675,64.98]
[1673551554650,18.75725104,16.702,16.68,121.97]
[1673551554861,0.96,16.701,16.681,44.97]
[1673551555070,109.7901,16.704,16.681,63.72725104]
[1673551555277,109.7901,16.704,16.682,38.75725104]
[1673551555496,24.21,16.71,16.69,24.35]
[1673551555680,24.21,16.71,16.691,64.94]
[1673551555681,20.0,16.71,16.691,64.94]
[1673551555895,20.0,16.71,16.691,83.69725104]
[1673551556103,20.0,16.71,16.692,20.0]
[1673551556316,115.8197,16.711,16.693,44.93]
[1673551556523,115.8197,16.711,16.694,20.0]
[1673551556735,115.8197,16.711,16.695,44.93]
[1673551556954,69.05,16.71,16.691,44.94]
[1673551557157,20.0,16.709,16.689,44.94]
[1673551557586,44.89,16.708,16.688,44.95]
[1673551557803,20.96,16.707,16.688,44.95]
[1673551558855,44.9,16.706,16.688,44.95]
[1673551559181,20.0,16.705,16.685,44.96]
[1673551559396,20.0,16.705,16.686,20.0]
[1673551559608,20.0,16.705,16.687,44.95]
[1673551559790,64.9,16.707,16.688,0.96]
[1673551560001,20.0,16.708,16.689,44.94]
[1673551560322,20.0,16.708,16.688,38.75725104]
[1673551560539,20.0,16.708,16.69,20.0]
[1673551560748,20.0,16.708,16.691,44.94]
[1673551561393,61.9,16.707,16.689,44.94]
[1673551561581,244.2,16.707,16.687,44.95]
[1673551561791,0.96,16.706,16.687,44.95]
[1673551562113,24.39,16.7,16.687,44.95]
[1673551562327,0.96,16.699,16.685,44.96]
[1673551562543,0.96,16.699,16.67,129.1021155]
[1673551562544,65.88,16.699,16.681,44.97]
[1673551562740,65.88,16.699,16.679,44.97]
[1673551562949,20.0,16.698,16.68,20.0]
[1673551563169,20.0,16.698,16.681,44.97]
[1673551563383,0.96,16.697,16.681,44.97]
[1673551563714,20.0,16.699,16.681,44.97]
[1673551563896,0.96,16.698,16.682,20.0]
[1673551564222,0.96,16.698,16.681,44.97]
[1673551564223,20.96,16.698,16.683,44.96]
[1673551564542,20.96,16.698,16.68,44.36]
[1673551564543,20.96,16.698,16.681,44.97]
[1673551565065,20.96,16.698,16.679,44.97]
[1673551565253,24.57,16.7,16.681,18.75725104]
[1673551565467,24.57,16.7,16.682,44.96]
[1673551565694,108.6182,16.703,16.682,44.96]
[1673551565885,20.0,16.702,16.684,20.0]
[1673551566217,108.6182,16.703,16.685,201.29255104]
[1673551566421,108.6182,16.703,16.686,1.92]
[1673551566621,108.6182,16.703,16.687,44.95]
[1673551567044,114.633,16.704,16.688,20.0]
[1673551567364,114.633,16.704,16.69,24.36]
[1673551567692,114.633,16.704,16.691,44.94]
[1673551567997,114.633,16.704,16.692,20.0]
[1673551568741,114.633,16.704,16.691,44.94]
[1673551568948,69.1,16.71,16.692,18.75725104]
[1673551569155,114.7249,16.713,16.693,86.85]
[1673551569156,117.8437,16.712,16.693,86.85]
[1673551569352,117.8437,16.712,16.693,200.2238]
[1673551569695,117.8437,16.712,16.694,18.75725104]
[1673551569878,117.8437,16.712,16.695,65.89]
[1673551570089,117.8437,16.712,16.696,20.0]
[1673551570312,117.8437,16.712,16.697,44.92]
[1673551571153,0.96,16.711,16.697,44.92]
[1673551571682,0.96,16.711,16.698,20.0]
[1673551572107,117.8437,16.712,16.698,20.0]
[1673551572610,117.8437,16.712,16.697,44.92]
[1673551573677,114.7249,16.713,16.698,18.75725104]
[1673551573887,202.3,16.723,16.699,66.84]
[1673551573888,108.8956,16.719,16.699,66.84]
[1673551574107,108.8956,16.719,16.7,42.81]